Workbook

Sheet oefening 1
A2: Aantal studenten per opleiding Academiejaar 2008 ‐ 2009
A3: studierichting | B3: 1e jaar | C3: 2e jaar | D3: 3e jaar | E3: totaal
A4: Ba SW | B4: 135 | C4: 90 | D4: 87 | E4: =SUM(B4:D4) -> 312
A5: Ba TP | B5: 168 | C5: 110 | D5: 100 | E5: =SUM(B5:D5) -> 378
A6: Ba O | B6: 156 | C6: 99 | D6: 86 | E6: =SUM(B6:D6) -> 341
A7: Ba MV | B7: 89 | C7: 35 | D7: 30 | E7: =SUM(B7:D7) -> 154
A8: Totaal | B8: =SUM(B4:B7) -> 548 | C8: =SUM(C4:C7) -> 334 | D8: =SUM(D4:D7) -> 303 | E8: =SUM(E4:E7) -> 1185
A13: Aantal studenten per opleiding Academiejaar 2008 ‐ 2009
A14: studierichting | B14: 1e jaar | C14: 2e jaar | D14: 3e jaar | E14: totaal
A15: Ba SW | B15: =B4/$B$8 -> 0.246350365 | C15: =C4/$C$8 -> 0.2694610778 | D15: =D4/$D$8 -> 0.2871287129 | E15: =E4/$E$8 -> 0.2632911392
A16: Ba TP | B16: =B5/$B$8 -> 0.3065693431 | C16: =C5/$C$8 -> 0.3293413174 | D16: =D5/$D$8 -> 0.3300330033 | E16: =E5/$E$8 -> 0.3189873418
A17: Ba O | B17: =B6/$B$8 -> 0.2846715328 | C17: =C6/$C$8 -> 0.2964071856 | D17: =D6/$D$8 -> 0.2838283828 | E17: =E6/$E$8 -> 0.2877637131
A18: Ba MV | B18: =B7/$B$8 -> 0.1624087591 | C18: =C7/$C$8 -> 0.1047904192 | D18: =D7/$D$8 -> 0.09900990099 | E18: =E7/$E$8 -> 0.1299578059
A19: Totaal | B19: =B8/$B$8 -> 1 | C19: =C8/$C$8 -> 1 | D19: =D8/$D$8 -> 1 | E19: =E8/$E$8 -> 1

Sheet oefening 2
A1: maandag | B1: 2008-12-01
A2: dinsdag | B2: 2008-12-02
A3: woensdag | B3: 2008-12-03
A4: donderdag | B4: 2008-12-04
A5: vrijdag | B5: 2008-12-05
A6: zaterdag | B6: 2008-12-06
A7: zondag | B7: 2008-12-07
A8: maandag | B8: 2008-12-08
A9: dinsdag | B9: 2008-12-09
A10: woensdag | B10: 2008-12-10
A11: donderdag | B11: 2008-12-11
A12: vrijdag | B12: 2008-12-12
A13: zaterdag | B13: 2008-12-13
A14: zondag | B14: 2008-12-14
A15: maandag | B15: 2008-12-15
A16: dinsdag | B16: 2008-12-16
A17: woensdag | B17: 2008-12-17
A18: donderdag | B18: 2008-12-18
A19: vrijdag | B19: 2008-12-19 | C19: Einde lesperiode 1
A20: zaterdag | B20: 2008-12-20
A21: zondag | B21: 2008-12-21
A22: maandag | B22: 2008-12-22 | C22: Kerstvakantie week 1
A23: dinsdag | B23: 2008-12-23
A24: woensdag | B24: 2008-12-24
A25: donderdag | B25: 2008-12-25
A26: vrijdag | B26: 2008-12-26
A27: zaterdag | B27: 2008-12-27
A28: zondag | B28: 2008-12-28
A29: maandag | B29: 2008-12-29 | C29: Kerstvakantie week 2
A30: dinsdag | B30: 2008-12-30
A31: woensdag | B31: 2008-12-31
A32: donderdag | B32: 2009-01-01
A33: vrijdag | B33: 2009-01-02
A34: zaterdag | B34: 2009-01-03
A35: zondag | B35: 2009-01-04
A36: maandag | B36: 2009-01-05 | C36: Blokweek
A37: dinsdag | B37: 2009-01-06
A38: woensdag | B38: 2009-01-07
A39: donderdag | B39: 2009-01-08
A40: vrijdag | B40: 2009-01-09
A41: zaterdag | B41: 2009-01-10
A42: zondag | B42: 2009-01-11
A43: maandag | B43: 2009-01-12 | C43: start examen periode 1
A44: dinsdag | B44: 2009-01-13
A45: woensdag | B45: 2009-01-14
A46: donderdag | B46: 2009-01-15
A47: vrijdag | B47: 2009-01-16
A48: zaterdag | B48: 2009-01-17
A49: zondag | B49: 2009-01-18
A50: maandag | B50: 2009-01-19
A51: dinsdag | B51: 2009-01-20
A52: woensdag | B52: 2009-01-21
A53: donderdag | B53: 2009-01-22
A54: vrijdag | B54: 2009-01-23
A55: zaterdag | B55: 2009-01-24
A56: zondag | B56: 2009-01-25
A57: maandag | B57: 2009-01-26
A58: dinsdag | B58: 2009-01-27
A59: woensdag | B59: 2009-01-28
A60: donderdag | B60: 2009-01-29
A61: vrijdag | B61: 2009-01-30 | C61: inhaaldag

Sheet oefening 3
A1: Invoer | C1: resultaat
A2: 0.6 | C2: 0.6
A3: 0.6 | C3: 0.6
A4: -3 | C4: -3
A5: 10000 | C5: 10000
A6: 10000 | C6: 10000
A7: 0.1 | C7: 0.1
A8: 0.25 | C8: 0.25
A9: 25 | C9: 25
A10: 50 | C10: 50
A11: =NOW() -> 2009-12-16T15:21:53.030 | C11: =NOW() -> 2009-12-16T15:21:53.030
A12: =NOW() -> 2009-12-16T15:21:53.030 | C12: =NOW() -> 2009-12-16T15:21:53.030
A13: =NOW() -> 2009-12-16T15:21:53.030 | C13: =NOW() -> 40163.6402
A14: =NOW() -> 2009-12-16T15:21:53.030 | C14: =NOW() -> 2009-12-16T15:21:53.030
A15: =NOW() -> 2009-12-16T15:21:53.030 | C15: =NOW() -> 2009-12-16T15:21:53.030

Sheet oefening 4
A1: INKOMEN | B1: NATION | C1: ONDNIV
A2: 2107.612199 | B2: belg | C2: 1
A3: 2144.805356 | B3: belg | C3: 1
A4: 1983.635011 | B4: belg | C4: 2
A5: 1859.657823 | B5: belg | C5: 2
A6: 1983.635011 | B6: belg | C6: 2
A7: 942.2266303 | B7: belg | C7: 0 | E7: Het gemiddelde inkomen | F7: =AVERAGE(A:A) -> 1724.980412 | H7: Onderwijsniveau = | J7: 0 lager onderwijs
A8: 2975.452517 | B8: belg | C8: 4 | E8: Hoogste inkomen | F8: =MAX(A:A) -> 13637.4907 | J8: 1 lager secundair onderwijs
A9: 942.2266303 | B9: belg | C9: 1 | E9: Laagste inkomen | F9: =MIN(A:A) -> 421.5224399 | J9: 2 hoger secundair onderwijs
A10: 1586.908009 | B10: belg | C10: 0 | E10: aantal inkomens | F10: =COUNT(A:A) -> 300 | J10: 3 hogeschool
A11: 681.8745351 | B11: belg | C11: 0 | J11: 4 universitair onderwijs
A12: 2568.807339 | B12: belg | C12: 3
A13: 743.8631292 | B13: belg | C13: 0 | E13: Belg | F13: =COUNTIF(B:B,"belg") -> 288
A14: 3223.406893 | B14: belg | C14: 2 | E14: nietbelg | F14: =COUNTIF(B:B,"nietbelg") -> 12
A15: 495.9087528 | B15: belg | C15: 0
A16: 1983.635011 | B16: belg | C16: 3
A17: 1983.635011 | B17: belg | C17: 2 | H17: onderwijsniveau gezinshoofden
A18: 1544.755765 | B18: belg | C18: 0 | H18: opleiding | I18: aantal | J18: procent
A19: 1388.544508 | B19: belg | C19: 1 | H19: LO | I19: =COUNTIF(C:C,0) -> 89 | J19: =I19/$I$24 -> 0.2966666667
A20: 2107.612199 | B20: belg | C20: 2 | H20: LSO | I20: =COUNTIF(C:C,1) -> 59 | J20: =I20/$I$24 -> 0.1966666667
A21: 1934.044136 | B21: belg | C21: 3 | H21: HSO | I21: =COUNTIF(C:C,2) -> 72 | J21: 0.24
A22: 2479.543764 | B22: belg | C22: 4 | H22: Hog, | I22: =COUNTIF(C:C,3) -> 56 | J22: 0.1866666667
A23: 2479.543764 | B23: belg | C23: 3 | H23: UO | I23: =COUNTIF(C:C,4) -> 24 | J23: 0.08
A24: 1239.771882 | B24: belg | C24: 0 | H24: Totaal | I24: =SUM(I19:I23) -> 300 | J24: 1
A25: 2231.589388 | B25: nietbelg | C25: 0
A26: 1589.387553 | B26: belg | C26: 0
A27: 1735.680635 | B27: belg | C27: 1
A28: 582.6927845 | B28: belg | C28: 0
A29: 1007.93454 | B29: belg | C29: 1
A30: 1135.631044 | B30: belg | C30: 2
A31: 2509.298289 | B31: belg | C31: 1
A32: 1363.74907 | B32: nietbelg | C32: 0
A33: 2479.543764 | B33: belg | C33: 0
A34: 2058.021324 | B34: belg | C34: 1
A35: 2479.543764 | B35: belg | C35: 3
A36: 5157.451029 | B36: belg | C36: 0
A37: 1735.680635 | B37: belg | C37: 0
A38: 2107.612199 | B38: belg | C38: 4
A39: 1810.066948 | B39: belg | C39: 3
A40: 2633.275477 | B40: belg | C40: 2
A41: 793.4540045 | B41: belg | C41: 1
A42: 1115.794694 | B42: belg | C42: 1
A43: 812.0505827 | B43: belg | C43: 1
A44: 843.0448797 | B44: belg | C44: 1
A45: 1810.066948 | B45: belg | C45: 1
A46: 2479.543764 | B46: belg | C46: 3
A47: 694.2722539 | B47: belg | C47: 3
A48: 4959.087528 | B48: belg | C48: 1
A49: 1314.158195 | B49: nietbelg | C49: 0
A50: 595.0905033 | B50: nietbelg | C50: 0
A51: 991.8175056 | B51: belg | C51: 0
A52: 976.0228118 | B52: belg | C52: 0
A53: 743.8631292 | B53: belg | C53: 0
A54: 843.0448797 | B54: belg | C54: 0
A55: 2479.543764 | B55: belg | C55: 2
A56: 1963.798661 | B56: belg | C56: 2
A57: 2107.612199 | B57: belg | C57: 2
A58: 1661.294322 | B58: belg | C58: 1
A59: 1562.112571 | B59: belg | C59: 3
A60: 1934.044136 | B60: belg | C60: 1
A61: 1462.930821 | B61: nietbelg | C61: 2
A62: 1810.066948 | B62: belg | C62: 2
A63: 1738.160179 | B63: belg | C63: 1
A64: 743.8631292 | B64: belg | C64: 0
A65: 2479.543764 | B65: belg | C65: 2
A66: 1177.783288 | B66: belg | C66: 1
A67: 1934.044136 | B67: belg | C67: 1
A68: 421.5224399 | B68: belg | C68: 1
A69: 691.7927101 | B69: belg | C69: 0
A70: 1785.27151 | B70: belg | C70: 0
A71: 704.190429 | B71: belg | C71: 0
A72: 1115.794694 | B72: belg | C72: 1
A73: 963.3027523 | B73: belg | C73: 0
A74: 702.9506571 | B74: belg | C74: 0
A75: 1983.635011 | B75: belg | C75: 1
A76: 1190.181007 | B76: belg | C76: 3
A77: 1663.773866 | B77: belg | C77: 1
A78: 2065.459955 | B78: belg | C78: 4
A79: 3339.94545 | B79: belg | C79: 4
A80: 1948.921398 | B80: belg | C80: 3
A81: 1914.207786 | B81: belg | C81: 2
A82: 893.8755269 | B82: belg | C82: 2
A83: 2318.373419 | B83: belg | C83: 3
A84: 1294.321845 | B84: belg | C84: 0
A85: 1579.469378 | B85: belg | C85: 1
A86: 2677.907265 | B86: belg | C86: 2
A87: 833.1267047 | B87: belg | C87: 0
A88: 1239.771882 | B88: belg | C88: 3
A89: 967.0220679 | B89: belg | C89: 0
A90: 5702.950657 | B90: belg | C90: 3
A91: 2355.566576 | B91: belg | C91: 2
A92: 3696.999752 | B92: belg | C92: 3
A93: 2479.543764 | B93: belg | C93: 4
A94: 1971.237292 | B94: belg | C94: 4
A95: 2226.6303 | B95: belg | C95: 3
A96: 1487.726258 | B96: belg | C96: 2
A97: 2925.861641 | B97: belg | C97: 3
A98: 1257.128688 | B98: belg | C98: 3
A99: 2787.007191 | B99: belg | C99: 1
A100: 2452.268783 | B100: belg | C100: 2
A101: 2653.111827 | B101: belg | C101: 4
A102: 2960.575254 | B102: belg | C102: 3
A103: 2479.543764 | B103: belg | C103: 3
A104: 2268.782544 | B104: belg | C104: 2
A105: 3451.524919 | B105: nietbelg | C105: 3
A106: 2194.396231 | B106: belg | C106: 4
A107: 619.885941 | B107: belg | C107: 2
A108: 909.9925614 | B108: belg | C108: 0
A109: 3339.94545 | B109: belg | C109: 3
A110: 973.2209273 | B110: belg | C110: 3
A111: 2519.216464 | B111: belg | C111: 4
A112: 1567.071659 | B112: belg | C112: 2
A113: 1233.573023 | B113: belg | C113: 3
A114: 1078.601537 | B114: belg | C114: 2
A115: 642.2018349 | B115: belg | C115: 0
A116: 768.6585668 | B116: belg | C116: 2
A117: 1760.476072 | B117: belg | C117: 0
A118: 1859.657823 | B118: belg | C118: 3
A119: 3719.315646 | B119: belg | C119: 1
A120: 495.9087528 | B120: belg | C120: 2
A121: 1983.635011 | B121: belg | C121: 1
A122: 1983.635011 | B122: belg | C122: 2
A123: 3099.429705 | B123: belg | C123: 3
A124: 619.885941 | B124: belg | C124: 0
A125: 949.6652616 | B125: belg | C125: 1
A126: 1569.551203 | B126: belg | C126: 0
A127: 1487.726258 | B127: belg | C127: 2
A128: 743.8631292 | B128: belg | C128: 0
A129: 991.8175056 | B129: belg | C129: 0
A130: 619.885941 | B130: nietbelg | C130: 0
A131: 1983.635011 | B131: belg | C131: 2
A132: 1983.635011 | B132: belg | C132: 1
A133: 1239.771882 | B133: belg | C133: 1
A134: 843.0448797 | B134: belg | C134: 0
A135: 867.8403174 | B135: belg | C135: 2
A136: 1450.533102 | B136: belg | C136: 0
A137: 2727.49814 | B137: belg | C137: 3
A138: 1735.680635 | B138: belg | C138: 2
A139: 2231.589388 | B139: belg | C139: 2
A140: 1661.294322 | B140: belg | C140: 2
A141: 2727.49814 | B141: belg | C141: 1
A142: 3347.384081 | B142: belg | C142: 2
A143: 1696.007935 | B143: belg | C143: 1
A144: 1239.771882 | B144: belg | C144: 3
A145: 3173.816018 | B145: belg | C145: 1
A146: 2132.407637 | B146: belg | C146: 2
A147: 1487.726258 | B147: belg | C147: 0
A148: 867.8403174 | B148: belg | C148: 0
A149: 2229.109844 | B149: belg | C149: 1
A150: 1041.408381 | B150: belg | C150: 0
A151: 2479.543764 | B151: belg | C151: 2
A152: 2231.589388 | B152: belg | C152: 1
A153: 2940.738904 | B153: belg | C153: 4
A154: 13637.4907 | B154: belg | C154: 2
A155: 2429.952889 | B155: belg | C155: 2
A156: 1636.498884 | B156: belg | C156: 1
A157: 471.1133152 | B157: belg | C157: 0
A158: 2479.543764 | B158: belg | C158: 4
A159: 1053.8061 | B159: belg | C159: 2
A160: 2172.080337 | B160: belg | C160: 1
A161: 1289.362757 | B161: belg | C161: 2
A162: 1487.726258 | B162: belg | C162: 1
A163: 1363.74907 | B163: belg | C163: 3
A164: 619.885941 | B164: belg | C164: 0
A165: 1016.612943 | B165: belg | C165: 0
A166: 662.038185 | B166: belg | C166: 0
A167: 628.5643442 | B167: belg | C167: 0
A168: 2432.432432 | B168: belg | C168: 3
A169: 1772.873791 | B169: belg | C169: 3
A170: 1658.814778 | B170: belg | C170: 3
A171: 4277.212993 | B171: belg | C171: 4
A172: 2412.596082 | B172: belg | C172: 2
A173: 1289.362757 | B173: belg | C173: 3
A174: 2090.255393 | B174: belg | C174: 0
A175: 646.1691049 | B175: belg | C175: 1
A176: 1592.784528 | B176: belg | C176: 1
A177: 1239.771882 | B177: belg | C177: 2
A178: 1378.626333 | B178: belg | C178: 0
A179: 1500.123977 | B179: belg | C179: 3
A180: 1358.789983 | B180: belg | C180: 3
A181: 928.5891396 | B181: belg | C181: 2
A182: 1171.584428 | B182: belg | C182: 2
A183: 619.885941 | B183: belg | C183: 0
A184: 1115.794694 | B184: belg | C184: 2
A185: 1443.094471 | B185: belg | C185: 0
A186: 991.8175056 | B186: belg | C186: 2
A187: 1983.635011 | B187: belg | C187: 2
A188: 917.4311927 | B188: belg | C188: 3
A189: 1088.519712 | B189: belg | C189: 1
A190: 2950.657079 | B190: belg | C190: 3
A191: 495.9087528 | B191: belg | C191: 0
A192: 463.6746839 | B192: belg | C192: 0
A193: 2583.684602 | B193: belg | C193: 4
A194: 1074.882222 | B194: belg | C194: 1
A195: 1011.653856 | B195: belg | C195: 0
A196: 1480.287627 | B196: belg | C196: 3
A197: 2935.779817 | B197: belg | C197: 4
A198: 1373.667245 | B198: nietbelg | C198: 0
A199: 1338.953633 | B199: belg | C199: 2
A200: 644.6813786 | B200: belg | C200: 0
... 101 more rows

Sheet oefening 5
A1: Tafels | B1: 1 | C1: 2 | D1: 3 | E1: 4 | F1: 5 | G1: 6 | H1: 7 | I1: 8 | J1: 9 | K1: 10
A2: 1 | B2: =$A:$A*$1:$1 -> 1 | C2: =$A:$A*$1:$1 -> 2 | D2: 3 | E2: 4 | F2: 5 | G2: 6 | H2: 7 | I2: 8 | J2: 9 | K2: 10
A3: 2 | B3: =$A:$A*$1:$1 -> 2 | C3: 4 | D3: 6 | E3: 8 | F3: 10 | G3: 12 | H3: 14 | I3: 16 | J3: 18 | K3: 20
A4: 3 | B4: 3 | C4: 6 | D4: 9 | E4: 12 | F4: 15 | G4: 18 | H4: 21 | I4: 24 | J4: 27 | K4: 30
A5: 4 | B5: 4 | C5: 8 | D5: 12 | E5: 16 | F5: 20 | G5: 24 | H5: 28 | I5: 32 | J5: 36 | K5: 40
A6: 5 | B6: 5 | C6: 10 | D6: 15 | E6: 20 | F6: 25 | G6: 30 | H6: 35 | I6: 40 | J6: 45 | K6: 50
A7: 6 | B7: 6 | C7: 12 | D7: 18 | E7: 24 | F7: 30 | G7: 36 | H7: 42 | I7: 48 | J7: 54 | K7: 60
A8: 7 | B8: 7 | C8: 14 | D8: 21 | E8: 28 | F8: 35 | G8: 42 | H8: 49 | I8: 56 | J8: 63 | K8: 70
A9: 8 | B9: 8 | C9: 16 | D9: 24 | E9: 32 | F9: 40 | G9: 48 | H9: 56 | I9: 64 | J9: 72 | K9: 80
A10: 9 | B10: 9 | C10: 18 | D10: 27 | E10: 36 | F10: 45 | G10: 54 | H10: 63 | I10: 72 | J10: 81 | K10: 90
A11: 10 | B11: 10 | C11: 20 | D11: 30 | E11: 40 | F11: 50 | G11: 60 | H11: 70 | I11: 80 | J11: 90 | K11: 100

Sheet oefening 6
A2: leeftijd van een groep patiënten in een RVT
A3: klasse | B3: anatal | C3: procent
A4: 60-64 | B4: 3 | C4: =B4/$B$11 -> 0.05
A5: 65-69 | B5: 6 | C5: =B5/$B$11 -> 0.1
A6: 70-74 | B6: 10 | C6: 0.1666666667
A7: 75-79 | B7: 18 | C7: 0.3
A8: 80-84 | B8: 11 | C8: 0.1833333333
A9: 85-89 | B9: 8 | C9: 0.1333333333
A10: 90-94 | B10: 4 | C10: 0.06666666667
A11: totaal | B11: =SUM(B4:B10) -> 60 | C11: 1

Sheet oefening 7
A1: Nr. | B1: AANTALP | C1: PAAR | D1: AANTALK | E1: INKOMEN | F1: AANTALW | G1: NATION | H1: ONDNIV | I1: GEMEENTE | K1: Codeboek
A2: 261 | B2: 1 | C2: 0 | D2: 0 | E2: 421.5224399 | F2: 0 | G2: nietbelg | H2: 4 | I2: Roeselare
A3: 234 | B3: 1 | C3: 0 | D3: 0 | E3: 586.4121002 | F3: 0 | G3: nietbelg | H3: 3 | I3: Veurne | K3: AantalP = Het totaal aantal personen in het gezin
A4: 129 | B4: 1 | C4: 0 | D4: 0 | E4: 619.885941 | F4: 0 | G4: nietbelg | H4: 0 | I4: Koksijde | K4: Paar = Het al dan niet aanwezig zijn van een getrouwd paar
A5: 235 | B5: 3 | C5: 0 | D5: 0 | E5: 1611.703447 | F5: 2 | G5: nietbelg | H5: 0 | I5: Roeselare | K5: AantalK = Aantal personen jonger dan 18 jaar
B6: Gemiddelde 0 | C6: =SUBTOTAL(1,C2:C5) -> 0 | E6: =SUBTOTAL(1,E2:E5) -> 809.8809819
A7: 49 | B7: 2 | C7: 1 | D7: 0 | E7: 595.0905033 | F7: 0 | G7: nietbelg | H7: 0 | I7: Brugge | K7: AantalW = Aantal werkende personen
A8: 263 | B8: 3 | C8: 1 | D8: 1 | E8: 1239.771882 | F8: 1 | G8: nietbelg | H8: 1 | I8: Ieper | K8: Inkomen = Netto gezamenlijk inkomen
A9: 48 | B9: 3 | C9: 1 | D9: 0 | E9: 1314.158195 | F9: 1 | G9: nietbelg | H9: 0 | I9: Ledegem | K9: Nationaliteit = Belg Niet Belg
A10: 31 | B10: 3 | C10: 1 | D10: 1 | E10: 1363.74907 | F10: 1 | G10: nietbelg | H10: 0 | I10: Knokke | K10: Onderwijsniveau = | M10: 0 lager onderwijs
A11: 197 | B11: 3 | C11: 1 | D11: 1 | E11: 1373.667245 | F11: 2 | G11: nietbelg | H11: 0 | I11: Ardooie | M11: 1 lager secundair onderwijs
A12: 60 | B12: 4 | C12: 1 | D12: 2 | E12: 1462.930821 | F12: 1 | G12: nietbelg | H12: 2 | I12: Wevelgem | M12: 2 hoger secundair onderwijs
A13: 24 | B13: 2 | C13: 1 | D13: 0 | E13: 2231.589388 | F13: 1 | G13: nietbelg | H13: 0 | I13: Gistel | M13: 3 hogeschool
A14: 104 | B14: 4 | C14: 1 | D14: 0 | E14: 3451.524919 | F14: 1 | G14: nietbelg | H14: 3 | I14: Veurne | M14: 4 universitair onderwijs
B15: Gemiddelde 1 | C15: =SUBTOTAL(1,C7:C14) -> 1 | E15: =SUBTOTAL(1,E7:E14) -> 1629.060253
A16: 67 | B16: 1 | C16: 0 | D16: 0 | E16: 421.5224399 | F16: 0 | G16: belg | H16: 1 | I16: Ardooie | K16: Gemeente = woonplaats
A17: 255 | B17: 1 | C17: 0 | D17: 0 | E17: 438.9536325 | F17: 0 | G17: belg | H17: 0 | I17: Wevelgem
A18: 191 | B18: 1 | C18: 0 | D18: 0 | E18: 463.6746839 | F18: 0 | G18: belg | H18: 0 | I18: Ledegem
A19: 240 | B19: 1 | C19: 0 | D19: 0 | E19: 464.3937515 | F19: 0 | G19: belg | H19: 1 | I19: Kortrijk
A20: 156 | B20: 1 | C20: 0 | D20: 0 | E20: 471.1133152 | F20: 0 | G20: belg | H20: 0 | I20: Veurne
A21: 14 | B21: 1 | C21: 0 | D21: 0 | E21: 495.9087528 | F21: 0 | G21: belg | H21: 0 | I21: Roeselare
A22: 119 | B22: 1 | C22: 0 | D22: 0 | E22: 495.9087528 | F22: 0 | G22: belg | H22: 2 | I22: Ardooie
A23: 190 | B23: 2 | C23: 0 | D23: 0 | E23: 495.9087528 | F23: 1 | G23: belg | H23: 0 | I23: Wevelgem
A24: 202 | B24: 1 | C24: 0 | D24: 0 | E24: 495.9087528 | F24: 0 | G24: belg | H24: 0 | I24: Kortrijk
A25: 213 | B25: 3 | C25: 0 | D25: 2 | E25: 495.9087528 | F25: 1 | G25: belg | H25: 2 | I25: Knokke
A26: 274 | B26: 1 | C26: 0 | D26: 0 | E26: 495.9087528 | F26: 0 | G26: belg | H26: 0 | I26: Roeselare
A27: 294 | B27: 1 | C27: 0 | D27: 0 | E27: 508.3064716 | F27: 0 | G27: belg | H27: 3 | I27: Wevelgem
A28: 224 | B28: 1 | C28: 0 | D28: 0 | E28: 570.2950657 | F28: 0 | G28: belg | H28: 0 | I28: Ieper
A29: 27 | B29: 1 | C29: 0 | D29: 0 | E29: 582.6927845 | F29: 0 | G29: belg | H29: 0 | I29: Roeselare
A30: 280 | B30: 1 | C30: 0 | D30: 0 | E30: 595.0905033 | F30: 1 | G30: belg | H30: 3 | I30: Kortrijk
A31: 123 | B31: 1 | C31: 0 | D31: 0 | E31: 619.885941 | F31: 0 | G31: belg | H31: 0 | I31: Kortrijk
A32: 163 | B32: 1 | C32: 0 | D32: 0 | E32: 619.885941 | F32: 0 | G32: belg | H32: 0 | I32: Kortrijk
A33: 182 | B33: 1 | C33: 0 | D33: 0 | E33: 619.885941 | F33: 0 | G33: belg | H33: 0 | I33: Veurne
A34: 166 | B34: 1 | C34: 0 | D34: 0 | E34: 628.5643442 | F34: 0 | G34: belg | H34: 0 | I34: Brugge
A35: 114 | B35: 1 | C35: 0 | D35: 0 | E35: 642.2018349 | F35: 0 | G35: belg | H35: 0 | I35: Brugge
A36: 199 | B36: 1 | C36: 0 | D36: 0 | E36: 644.6813786 | F36: 0 | G36: belg | H36: 0 | I36: Izegem
A37: 174 | B37: 1 | C37: 0 | D37: 0 | E37: 646.1691049 | F37: 0 | G37: belg | H37: 1 | I37: Knokke
A38: 238 | B38: 1 | C38: 0 | D38: 0 | E38: 669.4768163 | F38: 0 | G38: belg | H38: 0 | I38: Izegem
A39: 268 | B39: 1 | C39: 0 | D39: 0 | E39: 669.4768163 | F39: 0 | G39: belg | H39: 0 | I39: Wevelgem
A40: 10 | B40: 1 | C40: 0 | D40: 0 | E40: 681.8745351 | F40: 0 | G40: belg | H40: 0 | I40: Brugge
A41: 68 | B41: 1 | C41: 0 | D41: 0 | E41: 691.7927101 | F41: 0 | G41: belg | H41: 0 | I41: Ieper
A42: 46 | B42: 1 | C42: 0 | D42: 0 | E42: 694.2722539 | F42: 0 | G42: belg | H42: 3 | I42: Kortrijk
A43: 275 | B43: 1 | C43: 0 | D43: 0 | E43: 694.2722539 | F43: 0 | G43: belg | H43: 0 | I43: Ardooie
A44: 223 | B44: 1 | C44: 0 | D44: 0 | E44: 696.7517977 | F44: 0 | G44: belg | H44: 3 | I44: Ardooie
A45: 73 | B45: 2 | C45: 0 | D45: 0 | E45: 702.9506571 | F45: 0 | G45: belg | H45: 0 | I45: Wevelgem
A46: 70 | B46: 1 | C46: 0 | D46: 0 | E46: 704.190429 | F46: 0 | G46: belg | H46: 0 | I46: Knokke
A47: 239 | B47: 1 | C47: 0 | D47: 0 | E47: 706.6699727 | F47: 0 | G47: belg | H47: 0 | I47: Knokke
A48: 12 | B48: 1 | C48: 0 | D48: 0 | E48: 743.8631292 | F48: 0 | G48: belg | H48: 0 | I48: Koksijde
A49: 127 | B49: 1 | C49: 0 | D49: 0 | E49: 743.8631292 | F49: 0 | G49: belg | H49: 0 | I49: Brugge
A50: 40 | B50: 1 | C50: 0 | D50: 0 | E50: 793.4540045 | F50: 1 | G50: belg | H50: 1 | I50: Roeselare
A51: 53 | B51: 1 | C51: 0 | D51: 0 | E51: 843.0448797 | F51: 0 | G51: belg | H51: 0 | I51: Roeselare
A52: 133 | B52: 1 | C52: 0 | D52: 0 | E52: 843.0448797 | F52: 0 | G52: belg | H52: 0 | I52: Ieper
A53: 134 | B53: 1 | C53: 0 | D53: 0 | E53: 867.8403174 | F53: 1 | G53: belg | H53: 2 | I53: Izegem
A54: 81 | B54: 1 | C54: 0 | D54: 0 | E54: 893.8755269 | F54: 0 | G54: belg | H54: 2 | I54: Ieper
A55: 283 | B55: 1 | C55: 0 | D55: 0 | E55: 896.3550707 | F55: 0 | G55: belg | H55: 2 | I55: Brugge
A56: 187 | B56: 1 | C56: 0 | D56: 0 | E56: 917.4311927 | F56: 1 | G56: belg | H56: 3 | I56: Knokke
A57: 180 | B57: 1 | C57: 0 | D57: 0 | E57: 928.5891396 | F57: 1 | G57: belg | H57: 2 | I57: Gistel
A58: 6 | B58: 1 | C58: 0 | D58: 0 | E58: 942.2266303 | F58: 0 | G58: belg | H58: 0 | I58: Kortrijk
A59: 124 | B59: 1 | C59: 0 | D59: 0 | E59: 949.6652616 | F59: 0 | G59: belg | H59: 1 | I59: Kortrijk
A60: 88 | B60: 1 | C60: 0 | D60: 0 | E60: 967.0220679 | F60: 0 | G60: belg | H60: 0 | I60: Brugge
A61: 109 | B61: 2 | C61: 0 | D61: 1 | E61: 973.2209273 | F61: 1 | G61: belg | H61: 3 | I61: Knokke
A62: 51 | B62: 1 | C62: 0 | D62: 0 | E62: 976.0228118 | F62: 0 | G62: belg | H62: 0 | I62: Koksijde
A63: 50 | B63: 2 | C63: 0 | D63: 0 | E63: 991.8175056 | F63: 0 | G63: belg | H63: 0 | I63: Gistel
A64: 164 | B64: 2 | C64: 0 | D64: 0 | E64: 1016.612943 | F64: 0 | G64: belg | H64: 0 | I64: Wevelgem
A65: 292 | B65: 2 | C65: 0 | D65: 1 | E65: 1041.408381 | F65: 0 | G65: belg | H65: 1 | I65: Kortrijk
A66: 113 | B66: 4 | C66: 0 | D66: 3 | E66: 1078.601537 | F66: 0 | G66: belg | H66: 2 | I66: Ledegem
A67: 188 | B67: 3 | C67: 0 | D67: 2 | E67: 1088.519712 | F67: 0 | G67: belg | H67: 1 | I67: Kortrijk
A68: 287 | B68: 1 | C68: 0 | D68: 0 | E68: 1115.794694 | F68: 0 | G68: belg | H68: 0 | I68: Roeselare
A69: 29 | B69: 1 | C69: 0 | D69: 0 | E69: 1135.631044 | F69: 0 | G69: belg | H69: 2 | I69: Ieper
A70: 75 | B70: 4 | C70: 0 | D70: 3 | E70: 1190.181007 | F70: 1 | G70: belg | H70: 3 | I70: Brugge
A71: 229 | B71: 1 | C71: 0 | D71: 0 | E71: 1206.298041 | F71: 1 | G71: belg | H71: 1 | I71: Wevelgem
A72: 247 | B72: 2 | C72: 0 | D72: 0 | E72: 1207.537813 | F72: 2 | G72: belg | H72: 3 | I72: Veurne
A73: 143 | B73: 3 | C73: 0 | D73: 0 | E73: 1239.771882 | F73: 0 | G73: belg | H73: 3 | I73: Veurne
A74: 97 | B74: 1 | C74: 0 | D74: 0 | E74: 1257.128688 | F74: 0 | G74: belg | H74: 3 | I74: Kortrijk
A75: 172 | B75: 2 | C75: 0 | D75: 1 | E75: 1289.362757 | F75: 1 | G75: belg | H75: 3 | I75: Ieper
A76: 248 | B76: 1 | C76: 0 | D76: 0 | E76: 1353.830895 | F76: 0 | G76: belg | H76: 2 | I76: Roeselare
A77: 179 | B77: 2 | C77: 0 | D77: 0 | E77: 1358.789983 | F77: 1 | G77: belg | H77: 3 | I77: Brugge
A78: 162 | B78: 1 | C78: 0 | D78: 0 | E78: 1363.74907 | F78: 1 | G78: belg | H78: 3 | I78: Kortrijk
A79: 225 | B79: 2 | C79: 0 | D79: 0 | E79: 1413.339945 | F79: 1 | G79: belg | H79: 0 | I79: Izegem
A80: 195 | B80: 2 | C80: 0 | D80: 0 | E80: 1480.287627 | F80: 2 | G80: belg | H80: 3 | I80: Veurne
A81: 126 | B81: 1 | C81: 0 | D81: 0 | E81: 1487.726258 | F81: 0 | G81: belg | H81: 2 | I81: Ledegem
A82: 285 | B82: 2 | C82: 0 | D82: 0 | E82: 1500.123977 | F82: 2 | G82: belg | H82: 0 | I82: Koksijde
A83: 17 | B83: 3 | C83: 0 | D83: 1 | E83: 1544.755765 | F83: 2 | G83: belg | H83: 0 | I83: Izegem
A84: 9 | B84: 2 | C84: 0 | D84: 0 | E84: 1586.908009 | F84: 1 | G84: belg | H84: 0 | I84: Ledegem
A85: 252 | B85: 4 | C85: 0 | D85: 1 | E85: 1636.498884 | F85: 1 | G85: belg | H85: 2 | I85: Knokke
A86: 168 | B86: 1 | C86: 0 | D86: 0 | E86: 1772.873791 | F86: 1 | G86: belg | H86: 3 | I86: Koksijde
A87: 69 | B87: 2 | C87: 0 | D87: 0 | E87: 1785.27151 | F87: 0 | G87: belg | H87: 0 | I87: Izegem
A88: 210 | B88: 3 | C88: 0 | D88: 1 | E88: 1983.635011 | F88: 2 | G88: belg | H88: 2 | I88: Ardooie
A89: 173 | B89: 4 | C89: 0 | D89: 1 | E89: 2090.255393 | F89: 1 | G89: belg | H89: 0 | I89: Izegem
A90: 151 | B90: 2 | C90: 0 | D90: 0 | E90: 2231.589388 | F90: 2 | G90: belg | H90: 1 | I90: Wevelgem
A91: 282 | B91: 1 | C91: 0 | D91: 0 | E91: 2231.589388 | F91: 1 | G91: belg | H91: 2 | I91: Ledegem
A92: 82 | B92: 2 | C92: 0 | D92: 0 | E92: 2318.373419 | F92: 2 | G92: belg | H92: 3 | I92: Izegem
A93: 90 | B93: 4 | C93: 0 | D93: 0 | E93: 2355.566576 | F93: 1 | G93: belg | H93: 2 | I93: Koksijde
A94: 171 | B94: 2 | C94: 0 | D94: 0 | E94: 2412.596082 | F94: 2 | G94: belg | H94: 2 | I94: Ardooie
A95: 99 | B95: 2 | C95: 0 | D95: 0 | E95: 2452.268783 | F95: 0 | G95: belg | H95: 2 | I95: Wevelgem
A96: 22 | B96: 3 | C96: 0 | D96: 1 | E96: 2479.543764 | F96: 2 | G96: belg | H96: 3 | I96: Ledegem
A97: 157 | B97: 1 | C97: 0 | D97: 0 | E97: 2479.543764 | F97: 0 | G97: belg | H97: 4 | I97: Roeselare
A98: 231 | B98: 3 | C98: 0 | D98: 1 | E98: 2479.543764 | F98: 2 | G98: belg | H98: 3 | I98: Brugge
A99: 296 | B99: 1 | C99: 0 | D99: 0 | E99: 2479.543764 | F99: 0 | G99: belg | H99: 3 | I99: Brugge
A100: 100 | B100: 4 | C100: 0 | D100: 2 | E100: 2653.111827 | F100: 1 | G100: belg | H100: 4 | I100: Ledegem
A101: 13 | B101: 2 | C101: 0 | D101: 0 | E101: 3223.406893 | F101: 2 | G101: belg | H101: 2 | I101: Veurne
A102: 47 | B102: 1 | C102: 0 | D102: 0 | E102: 4959.087528 | F102: 0 | G102: belg | H102: 1 | I102: Wevelgem
B103: Gemiddelde 0 | C103: =SUBTOTAL(1,C16:C102) -> 0 | E103: =SUBTOTAL(1,E16:E102) -> 1196.281539
A104: 295 | B104: 2 | C104: 1 | D104: 0 | E104: 579.717332 | F104: 0 | G104: belg | H104: 0 | I104: Ledegem
A105: 106 | B105: 2 | C105: 1 | D105: 0 | E105: 619.885941 | F105: 0 | G105: belg | H105: 2 | I105: Ardooie
A106: 222 | B106: 2 | C106: 1 | D106: 0 | E106: 646.3178775 | F106: 0 | G106: belg | H106: 0 | I106: Roeselare
A107: 165 | B107: 2 | C107: 1 | D107: 0 | E107: 662.038185 | F107: 0 | G107: belg | H107: 0 | I107: Ledegem
A108: 205 | B108: 3 | C108: 1 | D108: 0 | E108: 719.0676915 | F108: 2 | G108: belg | H108: 1 | I108: Brugge
A109: 52 | B109: 2 | C109: 1 | D109: 0 | E109: 743.8631292 | F109: 0 | G109: belg | H109: 0 | I109: Veurne
A110: 63 | B110: 2 | C110: 1 | D110: 0 | E110: 743.8631292 | F110: 0 | G110: belg | H110: 0 | I110: Gistel
A111: 115 | B111: 2 | C111: 1 | D111: 0 | E111: 768.6585668 | F111: 0 | G111: belg | H111: 2 | I111: Gistel
A112: 42 | B112: 3 | C112: 1 | D112: 1 | E112: 812.0505827 | F112: 2 | G112: belg | H112: 1 | I112: Ieper
A113: 86 | B113: 2 | C113: 1 | D113: 0 | E113: 833.1267047 | F113: 0 | G113: belg | H113: 0 | I113: Wevelgem
A114: 43 | B114: 2 | C114: 1 | D114: 0 | E114: 843.0448797 | F114: 0 | G114: belg | H114: 1 | I114: Izegem
A115: 147 | B115: 2 | C115: 1 | D115: 0 | E115: 867.8403174 | F115: 0 | G115: belg | H115: 0 | I115: Izegem
A116: 226 | B116: 2 | C116: 1 | D116: 0 | E116: 867.8403174 | F116: 0 | G116: belg | H116: 0 | I116: Knokke
A117: 273 | B117: 2 | C117: 1 | D117: 0 | E117: 872.7994049 | F117: 1 | G117: belg | H117: 0 | I117: Veurne
A118: 107 | B118: 2 | C118: 1 | D118: 0 | E118: 909.9925614 | F118: 0 | G118: belg | H118: 0 | I118: Ieper
A119: 251 | B119: 3 | C119: 1 | D119: 0 | E119: 911.2323333 | F119: 1 | G119: belg | H119: 3 | I119: Izegem
A120: 257 | B120: 2 | C120: 1 | D120: 0 | E120: 917.4311927 | F120: 0 | G120: belg | H120: 0 | I120: Brugge
A121: 8 | B121: 2 | C121: 1 | D121: 0 | E121: 942.2266303 | F121: 0 | G121: belg | H121: 1 | I121: Wevelgem
A122: 212 | B122: 2 | C122: 1 | D122: 0 | E122: 960.8232085 | F122: 0 | G122: belg | H122: 1 | I122: Izegem
A123: 72 | B123: 2 | C123: 1 | D123: 0 | E123: 963.3027523 | F123: 0 | G123: belg | H123: 0 | I123: Kortrijk
A124: 215 | B124: 2 | C124: 1 | D124: 0 | E124: 967.0220679 | F124: 0 | G124: belg | H124: 0 | I124: Kortrijk
A125: 128 | B125: 2 | C125: 1 | D125: 0 | E125: 991.8175056 | F125: 0 | G125: belg | H125: 0 | I125: Gistel
A126: 185 | B126: 3 | C126: 1 | D126: 1 | E126: 991.8175056 | F126: 1 | G126: belg | H126: 2 | I126: Ieper
A127: 204 | B127: 2 | C127: 1 | D127: 0 | E127: 991.8175056 | F127: 1 | G127: belg | H127: 1 | I127: Ledegem
A128: 221 | B128: 2 | C128: 1 | D128: 0 | E128: 991.8175056 | F128: 0 | G128: belg | H128: 0 | I128: Veurne
A129: 293 | B129: 2 | C129: 1 | D129: 0 | E129: 1005.454996 | F129: 0 | G129: belg | H129: 2 | I129: Kortrijk
A130: 28 | B130: 3 | C130: 1 | D130: 0 | E130: 1007.93454 | F130: 1 | G130: belg | H130: 1 | I130: Ardooie
A131: 194 | B131: 3 | C131: 1 | D131: 0 | E131: 1011.653856 | F131: 2 | G131: belg | H131: 0 | I131: Koksijde
A132: 149 | B132: 2 | C132: 1 | D132: 0 | E132: 1041.408381 | F132: 0 | G132: belg | H132: 0 | I132: Kortrijk
A133: 158 | B133: 2 | C133: 1 | D133: 0 | E133: 1053.8061 | F133: 1 | G133: belg | H133: 2 | I133: Ardooie
A134: 266 | B134: 2 | C134: 1 | D134: 0 | E134: 1055.045872 | F134: 1 | G134: belg | H134: 2 | I134: Kortrijk
A135: 193 | B135: 2 | C135: 1 | D135: 0 | E135: 1074.882222 | F135: 0 | G135: belg | H135: 1 | I135: Gistel
A136: 41 | B136: 3 | C136: 1 | D136: 0 | E136: 1115.794694 | F136: 2 | G136: belg | H136: 1 | I136: Ardooie
A137: 71 | B137: 2 | C137: 1 | D137: 0 | E137: 1115.794694 | F137: 0 | G137: belg | H137: 1 | I137: Kortrijk
A138: 183 | B138: 2 | C138: 1 | D138: 0 | E138: 1115.794694 | F138: 0 | G138: belg | H138: 2 | I138: Roeselare
A139: 289 | B139: 3 | C139: 1 | D139: 0 | E139: 1140.590131 | F139: 1 | G139: belg | H139: 0 | I139: Ieper
A140: 181 | B140: 2 | C140: 1 | D140: 0 | E140: 1171.584428 | F140: 0 | G140: belg | H140: 2 | I140: Koksijde
A141: 65 | B141: 3 | C141: 1 | D141: 1 | E141: 1177.783288 | F141: 1 | G141: belg | H141: 1 | I141: Veurne
A142: 250 | B142: 2 | C142: 1 | D142: 0 | E142: 1221.175304 | F142: 0 | G142: belg | H142: 0 | I142: Ieper
A143: 299 | B143: 3 | C143: 1 | D143: 0 | E143: 1228.613935 | F143: 1 | G143: belg | H143: 1 | I143: Veurne
A144: 112 | B144: 2 | C144: 1 | D144: 0 | E144: 1233.573023 | F144: 1 | G144: belg | H144: 3 | I144: Wevelgem
A145: 23 | B145: 4 | C145: 1 | D145: 2 | E145: 1239.771882 | F145: 1 | G145: belg | H145: 0 | I145: Brugge
A146: 87 | B146: 2 | C146: 1 | D146: 0 | E146: 1239.771882 | F146: 0 | G146: belg | H146: 3 | I146: Ledegem
A147: 132 | B147: 2 | C147: 1 | D147: 0 | E147: 1239.771882 | F147: 0 | G147: belg | H147: 1 | I147: Ardooie
A148: 176 | B148: 4 | C148: 1 | D148: 1 | E148: 1239.771882 | F148: 2 | G148: belg | H148: 2 | I148: Kortrijk
A149: 244 | B149: 3 | C149: 1 | D149: 1 | E149: 1239.771882 | F149: 1 | G149: belg | H149: 0 | I149: Brugge
A150: 160 | B150: 2 | C150: 1 | D150: 0 | E150: 1289.362757 | F150: 0 | G150: belg | H150: 2 | I150: Izegem
A151: 211 | B151: 3 | C151: 1 | D151: 1 | E151: 1289.362757 | F151: 1 | G151: belg | H151: 0 | I151: Blankenberge
A152: 83 | B152: 6 | C152: 1 | D152: 2 | E152: 1294.321845 | F152: 1 | G152: belg | H152: 0 | I152: Knokke
A153: 198 | B153: 2 | C153: 1 | D153: 0 | E153: 1338.953633 | F153: 0 | G153: belg | H153: 2 | I153: Ieper
A154: 201 | B154: 2 | C154: 1 | D154: 0 | E154: 1363.74907 | F154: 0 | G154: belg | H154: 0 | I154: Kortrijk
A155: 258 | B155: 4 | C155: 1 | D155: 0 | E155: 1363.74907 | F155: 2 | G155: belg | H155: 0 | I155: Gistel
A156: 288 | B156: 3 | C156: 1 | D156: 0 | E156: 1363.74907 | F156: 2 | G156: belg | H156: 3 | I156: Ardooie
A157: 177 | B157: 2 | C157: 1 | D157: 0 | E157: 1378.626333 | F157: 1 | G157: belg | H157: 0 | I157: Wevelgem
A158: 18 | B158: 4 | C158: 1 | D158: 2 | E158: 1388.544508 | F158: 1 | G158: belg | H158: 1 | I158: Knokke
A159: 267 | B159: 3 | C159: 1 | D159: 0 | E159: 1398.462683 | F159: 0 | G159: belg | H159: 2 | I159: Kortrijk
A160: 227 | B160: 5 | C160: 1 | D160: 1 | E160: 1413.339945 | F160: 2 | G160: belg | H160: 0 | I160: Kortrijk
A161: 271 | B161: 4 | C161: 1 | D161: 2 | E161: 1420.778577 | F161: 2 | G161: belg | H161: 1 | I161: Gistel
A162: 200 | B162: 2 | C162: 1 | D162: 0 | E162: 1435.655839 | F162: 0 | G162: belg | H162: 0 | I162: Knokke
A163: 236 | B163: 3 | C163: 1 | D163: 0 | E163: 1440.614927 | F163: 1 | G163: belg | H163: 0 | I163: Ardooie
A164: 270 | B164: 2 | C164: 1 | D164: 0 | E164: 1440.614927 | F164: 1 | G164: belg | H164: 2 | I164: Brugge
A165: 184 | B165: 4 | C165: 1 | D165: 1 | E165: 1443.094471 | F165: 2 | G165: belg | H165: 0 | I165: Ardooie
A166: 135 | B166: 3 | C166: 1 | D166: 0 | E166: 1450.533102 | F166: 1 | G166: belg | H166: 0 | I166: Knokke
A167: 95 | B167: 3 | C167: 1 | D167: 1 | E167: 1487.726258 | F167: 1 | G167: belg | H167: 2 | I167: Izegem
A168: 146 | B168: 2 | C168: 1 | D168: 0 | E168: 1487.726258 | F168: 0 | G168: belg | H168: 0 | I168: Ieper
A169: 161 | B169: 4 | C169: 1 | D169: 2 | E169: 1487.726258 | F169: 2 | G169: belg | H169: 1 | I169: Knokke
A170: 276 | B170: 3 | C170: 1 | D170: 0 | E170: 1487.726258 | F170: 0 | G170: belg | H170: 0 | I170: Ieper
A171: 178 | B171: 2 | C171: 1 | D171: 0 | E171: 1500.123977 | F171: 2 | G171: belg | H171: 3 | I171: Ledegem
A172: 265 | B172: 3 | C172: 1 | D172: 1 | E172: 1547.235309 | F172: 2 | G172: belg | H172: 1 | I172: Knokke
A173: 58 | B173: 2 | C173: 1 | D173: 0 | E173: 1562.112571 | F173: 2 | G173: belg | H173: 3 | I173: Kortrijk
A174: 111 | B174: 4 | C174: 1 | D174: 2 | E174: 1567.071659 | F174: 1 | G174: belg | H174: 2 | I174: Kortrijk
A175: 125 | B175: 2 | C175: 1 | D175: 0 | E175: 1569.551203 | F175: 0 | G175: belg | H175: 0 | I175: Wevelgem
A176: 84 | B176: 2 | C176: 1 | D176: 0 | E176: 1579.469378 | F176: 2 | G176: belg | H176: 1 | I176: Kortrijk
A177: 253 | B177: 4 | C177: 1 | D177: 2 | E177: 1579.469378 | F177: 1 | G177: belg | H177: 1 | I177: Kortrijk
A178: 237 | B178: 3 | C178: 1 | D178: 1 | E178: 1586.908009 | F178: 2 | G178: belg | H178: 2 | I178: Ieper
A179: 25 | B179: 4 | C179: 1 | D179: 1 | E179: 1589.387553 | F179: 2 | G179: belg | H179: 0 | I179: Koksijde
A180: 175 | B180: 2 | C180: 1 | D180: 0 | E180: 1592.784528 | F180: 1 | G180: belg | H180: 1 | I180: Kortrijk
A181: 203 | B181: 3 | C181: 1 | D181: 0 | E181: 1611.703447 | F181: 0 | G181: belg | H181: 0 | I181: Wevelgem
A182: 233 | B182: 2 | C182: 1 | D182: 0 | E182: 1611.703447 | F182: 1 | G182: belg | H182: 1 | I182: Koksijde
A183: 256 | B183: 3 | C183: 1 | D183: 0 | E183: 1611.703447 | F183: 1 | G183: belg | H183: 0 | I183: Ledegem
A184: 297 | B184: 4 | C184: 1 | D184: 0 | E184: 1611.703447 | F184: 0 | G184: belg | H184: 3 | I184: Gistel
A185: 300 | B185: 4 | C185: 1 | D185: 1 | E185: 1631.539797 | F185: 1 | G185: belg | H185: 1 | I185: Roeselare
A186: 155 | B186: 3 | C186: 1 | D186: 0 | E186: 1636.498884 | F186: 2 | G186: belg | H186: 1 | I186: Koksijde
A187: 169 | B187: 5 | C187: 1 | D187: 3 | E187: 1658.814778 | F187: 1 | G187: belg | H187: 3 | I187: Veurne
A188: 57 | B188: 5 | C188: 1 | D188: 2 | E188: 1661.294322 | F188: 1 | G188: belg | H188: 1 | I188: Knokke
A189: 139 | B189: 2 | C189: 1 | D189: 0 | E189: 1661.294322 | F189: 2 | G189: belg | H189: 2 | I189: Ledegem
A190: 76 | B190: 3 | C190: 1 | D190: 1 | E190: 1663.773866 | F190: 2 | G190: belg | H190: 1 | I190: Gistel
A191: 228 | B191: 5 | C191: 1 | D191: 0 | E191: 1686.089759 | F191: 3 | G191: belg | H191: 2 | I191: Kortrijk
A192: 142 | B192: 5 | C192: 1 | D192: 3 | E192: 1696.007935 | F192: 2 | G192: belg | H192: 1 | I192: Koksijde
A193: 277 | B193: 3 | C193: 1 | D193: 0 | E193: 1708.405653 | F193: 2 | G193: belg | H193: 0 | I193: Izegem
A194: 26 | B194: 2 | C194: 1 | D194: 0 | E194: 1735.680635 | F194: 2 | G194: belg | H194: 1 | I194: Veurne
A195: 36 | B195: 3 | C195: 1 | D195: 1 | E195: 1735.680635 | F195: 1 | G195: belg | H195: 0 | I195: Brugge
A196: 137 | B196: 6 | C196: 1 | D196: 4 | E196: 1735.680635 | F196: 1 | G196: belg | H196: 2 | I196: Kortrijk
A197: 62 | B197: 4 | C197: 1 | D197: 2 | E197: 1738.160179 | F197: 1 | G197: belg | H197: 1 | I197: Brugge
A198: 116 | B198: 5 | C198: 1 | D198: 3 | E198: 1760.476072 | F198: 2 | G198: belg | H198: 0 | I198: Koksijde
A199: 38 | B199: 2 | C199: 1 | D199: 0 | E199: 1810.066948 | F199: 2 | G199: belg | H199: 3 | I199: Koksijde
A200: 44 | B200: 3 | C200: 1 | D200: 0 | E200: 1810.066948 | F200: 1 | G200: belg | H200: 1 | I200: Knokke
... 106 more rows
